[Event "Early-Titled-Tuesday-Blitz-October-17-2023"]
[Site "Chess.com"]
[Date "2023.10.17"]
[Round "1"]
[White "Ishowmoves57"]
[Black "JiaHaoxiang"]
[Result "0-1"]
[WhiteElo "2219"]
[BlackElo "2572"]
[TimeControl "180+1"]
[EndTime "8:07:30 PDT"]
[Termination "JiaHaoxiang won by resignation"]

1. e4 {[%clk 0:02:54.6]} 1... c5 {[%clk 0:02:43.8]} 2. Nf3 {[%clk 0:02:54]} 2...
d6 {[%clk 0:02:43.7]} 3. Bb5+ {[%clk 0:02:50]} 3... Bd7 {[%clk 0:02:43.3]} 4.
Bxd7+ {[%clk 0:02:49.7]} 4... Qxd7 {[%clk 0:02:44.2]} 5. O-O {[%clk 0:02:46.9]}
5... Nc6 {[%clk 0:02:42.1]} 6. c3 {[%clk 0:02:46.4]} 6... Nf6 {[%clk 0:02:41.5]}
7. Qe2 {[%clk 0:02:42.7]} 7... e6 {[%clk 0:02:39.7]} 8. d3 {[%clk 0:02:43]} 8...
Be7 {[%clk 0:02:38.1]} 9. a4 {[%clk 0:02:37]} 9... a6 {[%clk 0:02:35]} 10. Na3
{[%clk 0:02:28.6]} 10... O-O {[%clk 0:02:33.8]} 11. Nc4 {[%clk 0:02:22.1]} 11...
Qc7 {[%clk 0:02:32.5]} 12. Bf4 {[%clk 0:02:21]} 12... b5 {[%clk 0:02:28.5]} 13.
axb5 {[%clk 0:02:17.9]} 13... axb5 {[%clk 0:02:29.4]} 14. Ncd2 {[%clk 0:02:18]}
14... Nd7 {[%clk 0:02:23.6]} 15. d4 {[%clk 0:02:08.5]} 15... c4 {[%clk
0:02:16.1]} 16. d5 {[%clk 0:02:02.5]} 16... Nce5 {[%clk 0:02:04.2]} 17. Nxe5
{[%clk 0:01:58.7]} 17... Nxe5 {[%clk 0:02:02.1]} 18. Bxe5 {[%clk 0:01:57.3]}
18... dxe5 {[%clk 0:02:03]} 19. dxe6 {[%clk 0:01:57.6]} 19... fxe6 {[%clk
0:02:03.9]} 20. Nf3 {[%clk 0:01:54.4]} 20... Bc5 {[%clk 0:02:01.6]} 21. Ng5
{[%clk 0:01:40.6]} 21... Rxa1 {[%clk 0:01:58.3]} 22. Rxa1 {[%clk 0:01:40.9]}
22... Rxf2 {[%clk 0:01:57.8]} 23. Qxf2 {[%clk 0:01:15.1]} 23... Bxf2+ {[%clk
0:01:57.6]} 24. Kxf2 {[%clk 0:01:16]} 24... Qc6 {[%clk 0:01:54.7]} 25. Rd1
{[%clk 0:01:05.7]} 25... Qb6+ {[%clk 0:01:54]} 26. Kf1 {[%clk 0:01:03.5]} 26...
h6 {[%clk 0:01:53.3]} 27. Nf3 {[%clk 0:01:01.7]} 27... Qe3 {[%clk 0:01:46.1]}
28. Re1 {[%clk 0:01:01.6]} 28... Qd3+ {[%clk 0:01:46.4]} 29. Re2 {[%clk
0:01:01.9]} 29... Qd6 {[%clk 0:01:35.7]} 30. Ke1 {[%clk 0:00:58.4]} 30... b4
{[%clk 0:01:35.4]} 31. cxb4 {[%clk 0:00:57.7]} 31... Qxb4+ {[%clk 0:01:35.5]}
32. Kf2 {[%clk 0:00:58.4]} 32... g5 {[%clk 0:01:33.4]} 33. h3 {[%clk 0:00:52.6]}
33... Kg7 {[%clk 0:01:33.3]} 34. Rc2 {[%clk 0:00:45.6]} 34... Kf6 {[%clk
0:01:32.4]} 35. Re2 {[%clk 0:00:45.9]} 35... h5 {[%clk 0:01:31.6]} 36. Nh2
{[%clk 0:00:40.8]} 36... Qc5+ {[%clk 0:01:30.5]} 37. Kf1 {[%clk 0:00:40.8]}
37... Qd4 {[%clk 0:01:29.6]} 38. Nf3 {[%clk 0:00:39.6]} 38... Qd1+ {[%clk
0:01:29.5]} 39. Kf2 {[%clk 0:00:38.6]} 39... g4 {[%clk 0:01:28.6]} 40. hxg4
{[%clk 0:00:37.3]} 40... hxg4 {[%clk 0:01:29.5]} 41. Ne1 {[%clk 0:00:36.2]}
41... Qd4+ {[%clk 0:01:25.3]} 42. Kf1 {[%clk 0:00:33.4]} 42... Kg5 {[%clk
0:01:25.1]} 43. g3 {[%clk 0:00:25.2]} 43... Kf6 {[%clk 0:01:17.6]} 44. Kg2
{[%clk 0:00:24.1]} 44... Ke7 {[%clk 0:01:17.3]} 45. Kf1 {[%clk 0:00:24.7]} 45...
Kd6 {[%clk 0:01:17.4]} 46. Kg2 {[%clk 0:00:25.2]} 46... Kc5 {[%clk 0:01:18.1]}
47. Kf1 {[%clk 0:00:25.6]} 47... Qd1 {[%clk 0:01:18.2]} 48. Kf2 {[%clk
0:00:24.6]} 48... Qd8 {[%clk 0:01:10.2]} 49. Kf1 {[%clk 0:00:24.2]} 49... Qf6+
{[%clk 0:01:09.9]} 50. Kg2 {[%clk 0:00:24.1]} 50... Qh6 {[%clk 0:01:09.4]} 51.
Nc2 {[%clk 0:00:20.5]} 51... Qh3+ {[%clk 0:01:05.8]} 52. Kf2 {[%clk 0:00:20.4]}
52... Qh2+ {[%clk 0:01:06.1]} 53. Ke1 {[%clk 0:00:20.5]} 53... Qxg3+ {[%clk
0:01:06.4]} 54. Kd2 {[%clk 0:00:20.7]} 54... Qd3+ {[%clk 0:01:06.1]} 55. Ke1
{[%clk 0:00:20.3]} 55... g3 {[%clk 0:01:06.6]} 56. Ne3 {[%clk 0:00:20.7]} 56...
Qxe4 {[%clk 0:01:05.6]} 57. Ng2 {[%clk 0:00:20.4]} 57... Qb1+ {[%clk 0:01:05.2]}
58. Kd2 {[%clk 0:00:20.3]} 58... Qxb2+ {[%clk 0:01:05.7]} 59. Ke3 {[%clk
0:00:21.1]} 59... Qc3+ {[%clk 0:01:04.3]} 60. Ke4 {[%clk 0:00:21.4]} 60... Qd3+
{[%clk 0:01:04.4]} 61. Kxe5 {[%clk 0:00:20.3]} 61... Qxe2+ {[%clk 0:01:04.7]}
0-1

[Event "Early-Titled-Tuesday-Blitz-October-17-2023"]
[Site "Chess.com"]
[Date "2023.10.17"]
[Round "1"]
[White "Witty_Alien"]
[Black "Mesa_1"]
[Result "0-1"]
[WhiteElo "2241"]
[BlackElo "2579"]
[TimeControl "180+1"]
[EndTime "8:07:32 PDT"]
[Termination "Mesa_1 won on time"]

1. e4 {[%clk 0:02:51.7]} 1... d6 {[%clk 0:03:00.2]} 2. d4 {[%clk 0:02:51.8]}
2... Nf6 {[%clk 0:03:00.9]} 3. Nc3 {[%clk 0:02:51.8]} 3... e5 {[%clk 0:03:01.6]}
4. Nf3 {[%clk 0:02:35.8]} 4... exd4 {[%clk 0:02:59.8]} 5. Nxd4 {[%clk 0:02:36]}
5... Be7 {[%clk 0:03:00.5]} 6. Bg5 {[%clk 0:02:33.5]} 6... O-O {[%clk
0:03:01.2]} 7. Qd2 {[%clk 0:02:34]} 7... Nc6 {[%clk 0:02:51.8]} 8. O-O-O {[%clk
0:02:31]} 8... h6 {[%clk 0:02:50.2]} 9. h4 {[%clk 0:02:24.2]} 9... hxg5 {[%clk
0:02:39.5]} 10. hxg5 {[%clk 0:02:24.2]} 10... Ng4 {[%clk 0:02:31.9]} 11. g6
{[%clk 0:02:07.6]} 11... Bg5 {[%clk 0:02:16]} 12. f4 {[%clk 0:02:07.4]} 12...
Nxd4 {[%clk 0:02:16.5]} 13. fxg5 {[%clk 0:02:01.4]} 13... Ne6 {[%clk 0:02:15.8]}
14. Nd5 {[%clk 0:01:33.4]} 14... fxg6 {[%clk 0:02:06.9]} 15. Bc4 {[%clk
0:01:32.6]} 15... b5 {[%clk 0:01:50.2]} 16. Bb3 {[%clk 0:01:30.9]} 16... c5
{[%clk 0:01:48.7]} 17. Rh4 {[%clk 0:01:10.5]} 17... c4 {[%clk 0:01:37.8]} 18.
Rxg4 {[%clk 0:01:10.5]} 18... cxb3 {[%clk 0:01:37]} 19. axb3 {[%clk 0:01:02.7]}
19... Bb7 {[%clk 0:01:07.2]} 20. Rh1 {[%clk 0:00:45.9]} 20... Rc8 {[%clk
0:01:00.6]} 21. Kb1 {[%clk 0:00:42.5]} 21... Qd7 {[%clk 0:00:49.7]} 22. Rgh4
{[%clk 0:00:32.4]} 22... Kf7 {[%clk 0:00:35.2]} 23. Rh7 {[%clk 0:00:20.8]} 23...
Qd8 {[%clk 0:00:23.9]} 24. Qf2+ {[%clk 0:00:15.2]} 24... Ke8 {[%clk 0:00:24.5]}
25. Qxa7 {[%clk 0:00:15.5]} 25... Rb8 {[%clk 0:00:18]} 26. Rd1 {[%clk
0:00:03.9]} 26... Rf7 {[%clk 0:00:15.3]} 27. Rh8+ {[%clk 0:00:03.8]} 27... Nf8
{[%clk 0:00:15.9]} 28. Qd4 {[%clk 0:00:03.4]} 28... Bxd5 {[%clk 0:00:15.7]} 29.
exd5 {[%clk 0:00:03.9]} 29... Kd7 {[%clk 0:00:15]} 30. Qg4+ {[%clk 0:00:03.7]}
30... Kc7 {[%clk 0:00:15.2]} 31. Qb4 {[%clk 0:00:03]} 31... Kb6 {[%clk
0:00:14.6]} 32. c4 {[%clk 0:00:03]} 32... Qd7 {[%clk 0:00:15.3]} 33. Rh4 {[%clk
0:00:01.7]} 33... Qf5+ {[%clk 0:00:15.2]} 34. Kc1 {[%clk 0:00:01.3]} 34... Qxg5+
{[%clk 0:00:15.8]} 35. Rf4 {[%clk 0:00:01.4]} 35... Qxf4+ {[%clk 0:00:15.6]} 36.
Kb1 {[%clk 0:00:02.1]} 36... Qe4+ {[%clk 0:00:15.9]} 37. Kc1 {[%clk 0:00:02]}
37... Qe3+ {[%clk 0:00:16.6]} 38. Rd2 {[%clk 0:00:01.5]} 38... Rf1+ {[%clk
0:00:16.3]} 39. Kc2 {[%clk 0:00:01.2]} 39... Qe4+ {[%clk 0:00:16.8]} 40. Rd3
{[%clk 0:00:01.8]} 40... Rf2+ {[%clk 0:00:16.7]} 41. Kc3 {[%clk 0:00:01.5]}
41... Qe1+ {[%clk 0:00:15.8]} 0-1

[Event "Early-Titled-Tuesday-Blitz-October-17-2023"]
[Site "Chess.com"]
[Date "2023.10.17"]
[Round "1"]
[White "SlavenPastar"]
[Black "ajedrezhoy"]
[Result "1-0"]
[WhiteElo "2657"]
[BlackElo "2364"]
[TimeControl "180+1"]
[EndTime "8:07:34 PDT"]
[Termination "SlavenPastar won on time"]

1. b3 {[%clk 0:03:00.9]} 1... c5 {[%clk 0:02:56.8]} 2. Bb2 {[%clk 0:03:00.9]}
2... Nc6 {[%clk 0:02:55.4]} 3. Nf3 {[%clk 0:03:01.3]} 3... d6 {[%clk 0:02:54.6]}
4. e3 {[%clk 0:03:01.9]} 4... e5 {[%clk 0:02:54.6]} 5. c4 {[%clk 0:02:59.8]}
5... g6 {[%clk 0:02:53.1]} 6. d4 {[%clk 0:02:59]} 6... exd4 {[%clk 0:02:52.6]}
7. exd4 {[%clk 0:02:59.2]} 7... Bg7 {[%clk 0:02:52.8]} 8. Be2 {[%clk 0:02:54.9]}
8... Nge7 {[%clk 0:02:50.6]} 9. Qd2 {[%clk 0:02:48.6]} 9... O-O {[%clk
0:02:46.8]} 10. d5 {[%clk 0:02:45.6]} 10... Bxb2 {[%clk 0:02:41.9]} 11. Qxb2
{[%clk 0:02:46.5]} 11... Qa5+ {[%clk 0:02:23.7]} 12. Nbd2 {[%clk 0:02:42]} 12...
Nb8 {[%clk 0:02:20.7]} 13. O-O {[%clk 0:02:07.4]} 13... Bg4 {[%clk 0:02:15.4]}
14. Ne4 {[%clk 0:02:03.9]} 14... Nd7 {[%clk 0:01:54.8]} 15. Nxd6 {[%clk
0:01:45.2]} 15... Bxf3 {[%clk 0:01:47.7]} 16. Bxf3 {[%clk 0:01:43.3]} 16... Qb6
{[%clk 0:01:42.1]} 17. Ne4 {[%clk 0:01:36.3]} 17... Nf5 {[%clk 0:01:41]} 18. g3
{[%clk 0:01:17.7]} 18... Nd4 {[%clk 0:01:39.7]} 19. Bg2 {[%clk 0:01:17.6]} 19...
Rae8 {[%clk 0:01:28.5]} 20. Rad1 {[%clk 0:00:51.8]} 20... f5 {[%clk 0:01:09.9]}
21. Ng5 {[%clk 0:00:27.9]} 21... Re2 {[%clk 0:01:02.1]} 22. Qa1 {[%clk
0:00:23.2]} 22... Ne5 {[%clk 0:00:56.1]} 23. Ne6 {[%clk 0:00:14.9]} 23... Nxe6
{[%clk 0:00:22.5]} 24. dxe6 {[%clk 0:00:15.8]} 24... Re8 {[%clk 0:00:20.5]} 25.
Bd5 {[%clk 0:00:14.8]} 25... Re7 {[%clk 0:00:17.9]} 26. Rfe1 {[%clk 0:00:14]}
26... Rxe1+ {[%clk 0:00:14.5]} 27. Rxe1 {[%clk 0:00:14.9]} 27... Ng4 {[%clk
0:00:12.8]} 28. h3 {[%clk 0:00:13.4]} 28... Nh6 {[%clk 0:00:12.5]} 29. Qf6
{[%clk 0:00:11.3]} 29... Qd6 {[%clk 0:00:12.3]} 30. f4 {[%clk 0:00:09.5]} 30...
b6 {[%clk 0:00:11.4]} 31. Kg2 {[%clk 0:00:06.9]} 31... Qd8 {[%clk 0:00:10.7]}
32. Kf3 {[%clk 0:00:06.6]} 32... Qf8 {[%clk 0:00:10.5]} 33. Qxf8+ {[%clk
0:00:05.7]} 33... Kxf8 {[%clk 0:00:10.4]} 34. g4 {[%clk 0:00:06.6]} 34... Kg7
{[%clk 0:00:07.8]} 35. g5 {[%clk 0:00:06.1]} 35... Ng8 {[%clk 0:00:07.5]} 36. h4
{[%clk 0:00:06]} 36... h5 {[%clk 0:00:06.6]} 37. a3 {[%clk 0:00:05.7]} 37... a5
{[%clk 0:00:04.9]} 38. b4 {[%clk 0:00:05.9]} 38... Rc7 {[%clk 0:00:03.3]} 39.
bxa5 {[%clk 0:00:05.5]} 39... bxa5 {[%clk 0:00:03]} 40. Rb1 {[%clk 0:00:06]}
40... Ne7 {[%clk 0:00:03.2]} 41. Rb5 {[%clk 0:00:06.3]} 1-0

[Event "Early-Titled-Tuesday-Blitz-October-17-2023"]
[Site "Chess.com"]
[Date "2023.10.17"]
[Round "1"]
[White "AleksanderHnydiuk"]
[Black "JimDiGrease"]
[Result "0-1"]
[WhiteElo "2506"]
[BlackElo "2886"]
[TimeControl "180+1"]
[EndTime "8:07:36 PDT"]
[Termination "JimDiGrease won on time"]

1. d4 {[%clk 0:02:56.2]} 1... d5 {[%clk 0:02:58.6]} 2. c4 {[%clk 0:02:56]} 2...
e6 {[%clk 0:02:58.7]} 3. Nc3 {[%clk 0:02:55]} 3... c6 {[%clk 0:02:58.6]} 4. Qd3
{[%clk 0:02:45.1]} 4... Nf6 {[%clk 0:02:54.8]} 5. Bg5 {[%clk 0:02:39.3]} 5...
Be7 {[%clk 0:02:52.2]} 6. O-O-O {[%clk 0:02:36.9]} 6... Nbd7 {[%clk 0:02:43]} 7.
Nf3 {[%clk 0:02:33.4]} 7... Ng4 {[%clk 0:02:36.7]} 8. Be3 {[%clk 0:02:15.8]}
8... Ndf6 {[%clk 0:02:26.2]} 9. Ne5 {[%clk 0:02:08.8]} 9... Nxe5 {[%clk
0:02:05.4]} 10. dxe5 {[%clk 0:02:08.1]} 10... Ng4 {[%clk 0:02:04.9]} 11. cxd5
{[%clk 0:01:36.3]} 11... exd5 {[%clk 0:01:53.2]} 12. Bd4 {[%clk 0:01:34.6]}
12... c5 {[%clk 0:01:44.8]} 13. Bxc5 {[%clk 0:01:33.3]} 13... O-O {[%clk
0:01:09.9]} 14. Bxe7 {[%clk 0:01:19.5]} 14... Qxe7 {[%clk 0:01:10.8]} 15. Qg3
{[%clk 0:01:19.4]} 15... Bf5 {[%clk 0:00:46.6]} 16. f4 {[%clk 0:00:58.7]} 16...
d4 {[%clk 0:00:25.6]} 17. Rxd4 {[%clk 0:00:54.1]} 17... Rfd8 {[%clk 0:00:26.1]}
18. e3 {[%clk 0:00:49.6]} 18... Qc5 {[%clk 0:00:23.1]} 19. Be2 {[%clk
0:00:47.4]} 19... Nxe3 {[%clk 0:00:23.3]} 20. Rxd8+ {[%clk 0:00:33.7]} 20...
Rxd8 {[%clk 0:00:24.2]} 21. Qf2 {[%clk 0:00:23.8]} 21... Qd4 {[%clk 0:00:20.3]}
22. Bb5 {[%clk 0:00:17.7]} 22... a6 {[%clk 0:00:15.7]} 23. Re1 {[%clk
0:00:17.3]} 23... Nc2 {[%clk 0:00:09.2]} 24. Qxd4 {[%clk 0:00:15]} 24... Rxd4
{[%clk 0:00:10.1]} 25. Rd1 {[%clk 0:00:08.1]} 25... Rxd1+ {[%clk 0:00:09.8]} 26.
Kxd1 {[%clk 0:00:06.4]} 26... axb5 {[%clk 0:00:06.2]} 27. Nxb5 {[%clk
0:00:07.1]} 27... Ne3+ {[%clk 0:00:06.7]} 28. Kd2 {[%clk 0:00:06.6]} 28... Nxg2
{[%clk 0:00:07]} 29. Nd6 {[%clk 0:00:07]} 29... Be6 {[%clk 0:00:07.6]} 30. a4
{[%clk 0:00:04.3]} 30... Bd5 {[%clk 0:00:06.5]} 31. b4 {[%clk 0:00:03.7]} 31...
Nxf4 {[%clk 0:00:06.8]} 32. Ke3 {[%clk 0:00:03.5]} 32... Ne6 {[%clk 0:00:06.4]}
33. a5 {[%clk 0:00:02.6]} 33... Kf8 {[%clk 0:00:06.8]} 34. b5 {[%clk 0:00:01.4]}
34... Ke7 {[%clk 0:00:07.2]} 35. Nxb7 {[%clk 0:00:01.7]} 35... Bxb7 {[%clk
0:00:07.1]} 36. a6 {[%clk 0:00:02.2]} 36... Bd5 {[%clk 0:00:05.9]} 37. b6 {[%clk
0:00:01.6]} 37... Kd7 {[%clk 0:00:06.6]} 38. b7 {[%clk 0:00:01.9]} 38... Kc7
{[%clk 0:00:07.5]} 39. h4 {[%clk 0:00:01.8]} 39... Kb8 {[%clk 0:00:07.9]} 40. h5
{[%clk 0:00:01.6]} 40... h6 {[%clk 0:00:07.9]} 41. Kd2 {[%clk 0:00:01.5]} 41...
Bxb7 {[%clk 0:00:06.8]} 42. Kd3 {[%clk 0:00:02.4]} 42... Bxa6+ {[%clk
0:00:07.1]} 0-1

[Event "Early-Titled-Tuesday-Blitz-October-17-2023"]
[Site "Chess.com"]
[Date "2023.10.17"]
[Round "1"]
[White "MDBIchess"]
[Black "Macron20hTF1"]
[Result "1/2-1/2"]
[WhiteElo "2311"]
[BlackElo "2592"]
[TimeControl "180+1"]
[EndTime "8:07:37 PDT"]
[Termination "Game drawn by repetition"]

1. d4 {[%clk 0:02:47.7]} 1... Nf6 {[%clk 0:02:58]} 2. Nf3 {[%clk 0:02:44.9]}
2... d5 {[%clk 0:02:57.8]} 3. e3 {[%clk 0:02:40.3]} 3... Bg4 {[%clk 0:02:54.6]}
4. c4 {[%clk 0:02:36.3]} 4... e6 {[%clk 0:02:50.1]} 5. b3 {[%clk 0:02:34.2]}
5... Bb4+ {[%clk 0:02:34]} 6. Bd2 {[%clk 0:02:25.6]} 6... a5 {[%clk 0:02:26.3]}
7. Be2 {[%clk 0:02:22.5]} 7... O-O {[%clk 0:02:25.9]} 8. O-O {[%clk 0:02:22.3]}
8... Ne4 {[%clk 0:02:25.5]} 9. a3 {[%clk 0:02:16.1]} 9... Bxd2 {[%clk
0:02:24.1]} 10. Nfxd2 {[%clk 0:02:15.1]} 10... Bxe2 {[%clk 0:02:23.9]} 11. Qxe2
{[%clk 0:02:16]} 11... Nd6 {[%clk 0:02:23.7]} 12. c5 {[%clk 0:02:10.4]} 12...
Nf5 {[%clk 0:02:23]} 13. Nc3 {[%clk 0:02:02.2]} 13... Nc6 {[%clk 0:02:22.4]} 14.
Rab1 {[%clk 0:01:45.2]} 14... Re8 {[%clk 0:02:16.3]} 15. Nf3 {[%clk 0:01:42.2]}
15... h6 {[%clk 0:02:09.9]} 16. b4 {[%clk 0:01:39.5]} 16... axb4 {[%clk
0:02:09.5]} 17. axb4 {[%clk 0:01:40.4]} 17... e5 {[%clk 0:02:09.6]} 18. b5
{[%clk 0:01:35.7]} 18... exd4 {[%clk 0:02:09.8]} 19. bxc6 {[%clk 0:01:32.8]}
19... dxc3 {[%clk 0:02:10]} 20. cxb7 {[%clk 0:01:32.4]} 20... Rb8 {[%clk
0:02:07.8]} 21. Qd3 {[%clk 0:01:24.3]} 21... Qf6 {[%clk 0:01:53.8]} 22. Nd4
{[%clk 0:01:08.9]} 22... Nxd4 {[%clk 0:01:41.8]} 23. exd4 {[%clk 0:01:09.8]}
23... c2 {[%clk 0:01:41.5]} 24. Qxc2 {[%clk 0:00:58.6]} 24... Qxd4 {[%clk
0:01:41]} 25. c6 {[%clk 0:00:58.8]} 25... Qf6 {[%clk 0:01:29.2]} 26. Qc5 {[%clk
0:00:43.8]} 26... Re6 {[%clk 0:01:22.2]} 27. Qxd5 {[%clk 0:00:23]} 27... Rxc6
{[%clk 0:01:22.2]} 28. Qd7 {[%clk 0:00:10.7]} 28... Re6 {[%clk 0:01:06.4]} 29.
Qc8+ {[%clk 0:00:09.4]} 29... Re8 {[%clk 0:01:06.7]} 30. Qxe8+ {[%clk
0:00:09.1]} 30... Rxe8 {[%clk 0:01:07.6]} 31. b8=Q {[%clk 0:00:10]} 31... Rxb8
{[%clk 0:01:08.3]} 32. Rxb8+ {[%clk 0:00:10.9]} 32... Kh7 {[%clk 0:01:09.2]} 33.
Rc8 {[%clk 0:00:10.2]} 33... Qe7 {[%clk 0:01:00.6]} 34. Rc1 {[%clk 0:00:09.7]}
34... f5 {[%clk 0:00:57.7]} 35. R8xc7 {[%clk 0:00:09.8]} 35... Qe2 {[%clk
0:00:58.1]} 36. g3 {[%clk 0:00:08.9]} 36... f4 {[%clk 0:00:57.2]} 37. gxf4
{[%clk 0:00:07.4]} 37... Qg4+ {[%clk 0:00:57.1]} 38. Kf1 {[%clk 0:00:06.1]}
38... Qxf4 {[%clk 0:00:55.7]} 39. h3 {[%clk 0:00:02.7]} 39... Qh2 {[%clk
0:00:55.5]} 40. R1c3 {[%clk 0:00:02.2]} 40... Qh1+ {[%clk 0:00:53]} 41. Ke2
{[%clk 0:00:02.7]} 41... Qe4+ {[%clk 0:00:53.9]} 42. Kf1 {[%clk 0:00:03.3]}
42... Qe5 {[%clk 0:00:48.4]} 43. Kg2 {[%clk 0:00:03.1]} 43... h5 {[%clk
0:00:41.6]} 44. Kf1 {[%clk 0:00:02]} 44... Kh6 {[%clk 0:00:40.8]} 45. R7c6+
{[%clk 0:00:02.1]} 45... g6 {[%clk 0:00:41.3]} 46. R6c5 {[%clk 0:00:02.8]} 46...
Qe4 {[%clk 0:00:37.3]} 47. Kg1 {[%clk 0:00:02.8]} 47... Qb1+ {[%clk 0:00:34]}
48. Kg2 {[%clk 0:00:03.7]} 48... Qe4+ {[%clk 0:00:34.9]} 49. Kg1 {[%clk
0:00:04.1]} 49... Qf4 {[%clk 0:00:35.8]} 50. Rg3 {[%clk 0:00:03.1]} 50... Qe4
{[%clk 0:00:29.1]} 51. Rgc3 {[%clk 0:00:04]} 1/2-1/2

[Event "Early-Titled-Tuesday-Blitz-October-17-2023"]
[Site "Chess.com"]
[Date "2023.10.17"]
[Round "1"]
[White "AlexPapasimakopoulos"]
[Black "tomesao"]
[Result "1-0"]
[WhiteElo "2715"]
[BlackElo "2421"]
[TimeControl "180+1"]
[EndTime "8:07:38 PDT"]
[Termination "AlexPapasimakopoulos won by resignation"]

1. d4 {[%clk 0:02:54.2]} 1... Nf6 {[%clk 0:02:59.1]} 2. c4 {[%clk 0:02:53.8]}
2... e6 {[%clk 0:02:58.4]} 3. Nf3 {[%clk 0:02:52.2]} 3... d5 {[%clk 0:02:55.3]}
4. g3 {[%clk 0:02:48.9]} 4... Bb4+ {[%clk 0:02:54.3]} 5. Bd2 {[%clk 0:02:48.8]}
5... Be7 {[%clk 0:02:53]} 6. Bg2 {[%clk 0:02:49.1]} 6... c6 {[%clk 0:02:52.6]}
7. O-O {[%clk 0:02:49.2]} 7... O-O {[%clk 0:02:52.8]} 8. Qc2 {[%clk 0:02:48.2]}
8... Nbd7 {[%clk 0:02:52]} 9. b3 {[%clk 0:02:47.6]} 9... b6 {[%clk 0:02:50.9]}
10. Rd1 {[%clk 0:02:47.8]} 10... Bb7 {[%clk 0:02:50.7]} 11. Bf4 {[%clk
0:02:46.5]} 11... Rc8 {[%clk 0:02:46.7]} 12. Nc3 {[%clk 0:02:45.9]} 12... Nh5
{[%clk 0:02:45]} 13. cxd5 {[%clk 0:02:42.9]} 13... Nxf4 {[%clk 0:02:35.2]} 14.
gxf4 {[%clk 0:02:26.4]} 14... cxd5 {[%clk 0:02:33.9]} 15. Qd3 {[%clk 0:02:18.8]}
15... Bd6 {[%clk 0:02:19.7]} 16. e3 {[%clk 0:02:17]} 16... Qe7 {[%clk
0:02:17.4]} 17. Rac1 {[%clk 0:02:14]} 17... Ba3 {[%clk 0:02:13.6]} 18. Rc2
{[%clk 0:02:13.7]} 18... a6 {[%clk 0:02:13.7]} 19. Ne5 {[%clk 0:02:04.9]} 19...
Nxe5 {[%clk 0:02:06.1]} 20. fxe5 {[%clk 0:02:05.8]} 20... f6 {[%clk 0:02:04.3]}
21. e4 {[%clk 0:01:51.7]} 21... fxe5 {[%clk 0:01:49.9]} 22. exd5 {[%clk
0:01:33.6]} 22... exd4 {[%clk 0:01:48.8]} 23. Qxd4 {[%clk 0:01:30]} 23... Bc5
{[%clk 0:01:42.6]} 24. Qe5 {[%clk 0:01:28.6]} 24... Qh4 {[%clk 0:01:17.6]} 25.
Qxe6+ {[%clk 0:00:42.7]} 25... Kh8 {[%clk 0:01:17.5]} 26. Ne4 {[%clk 0:00:42.7]}
26... Rce8 {[%clk 0:01:03.7]} 27. Nxc5 {[%clk 0:00:42.8]} 27... bxc5 {[%clk
0:00:50.3]} 28. Qh3 {[%clk 0:00:40.4]} 28... Qg5 {[%clk 0:00:39.6]} 29. Qg3
{[%clk 0:00:39.8]} 29... Qf5 {[%clk 0:00:34.9]} 30. Rcd2 {[%clk 0:00:29.9]}
30... Rf6 {[%clk 0:00:33]} 31. Kh1 {[%clk 0:00:20.4]} 31... Rg6 {[%clk
0:00:28.4]} 32. Qf3 {[%clk 0:00:20.8]} 32... Qe5 {[%clk 0:00:28.1]} 33. a3
{[%clk 0:00:18.7]} 33... Bc8 {[%clk 0:00:22]} 34. h3 {[%clk 0:00:16.2]} 34...
Rf6 {[%clk 0:00:14]} 35. Qg3 {[%clk 0:00:16]} 35... Qf5 {[%clk 0:00:11]} 36. d6
{[%clk 0:00:16]} 36... Bd7 {[%clk 0:00:11.1]} 37. Rd5 {[%clk 0:00:14]} 37...
Qxf2 {[%clk 0:00:10.3]} 38. Qxf2 {[%clk 0:00:14.4]} 38... Rxf2 {[%clk
0:00:11.1]} 39. Rxc5 {[%clk 0:00:14.1]} 39... Ree2 {[%clk 0:00:11.2]} 40. Rg5
{[%clk 0:00:10.9]} 40... h6 {[%clk 0:00:09.9]} 41. Rg3 {[%clk 0:00:11.2]} 41...
Rxg2 {[%clk 0:00:07.5]} 42. Rxg2 {[%clk 0:00:11]} 42... Bc6 {[%clk 0:00:07.8]}
43. Rg1 {[%clk 0:00:11.7]} 43... Kg8 {[%clk 0:00:04.8]} 44. Kh2 {[%clk
0:00:11.9]} 44... Bxg2 {[%clk 0:00:04.7]} 45. Rxg2 {[%clk 0:00:12.8]} 45... Re3
{[%clk 0:00:04.9]} 46. Rg3 {[%clk 0:00:13.2]} 46... Re2+ {[%clk 0:00:04.8]} 47.
Rg2 {[%clk 0:00:13.5]} 47... Re3 {[%clk 0:00:05.1]} 48. Rd2 {[%clk 0:00:14.1]}
48... Kf8 {[%clk 0:00:05.6]} 49. d7 {[%clk 0:00:14.4]} 1-0